Workbook

Sheet Указатель
A1: Указатель листов
A2: 11-(0.5)
A3: 11-(1)
A4: 11-(2)
A5: 11-(3)
A6: 11-(4)
A7: 11-(5)
A8: 11-(6)
A9: 11-(7)
A10: 11-(7.2)
A11: 11-(7.4)
A12: 11-(8)
A13: 11-(9)
A14: 11-(10)
A15: 11-(11)
A16: 11-(13)
A17: 11-(15)
A18: 11-(16)
A19: 11-(17)
A20: 11-(18)
A21: 11-(19)

Sheet 11-(0.5)
A1: Назад к указателю
A2: TRUE | B2: TRUE | D2: =A2&"*"&B2&" = "&--A2&"*"&--B2&" = "&A2*B2&" = "&AND(A2*B2) -> ИСТИНА*ИСТИНА = 1*1 = 1 = ИСТИНА
A3: FALSE | B3: TRUE | D3: =A3&"*"&B3&" = "&--A3&"*"&--B3&" = "&A3*B3&" = "&AND(A3*B3) -> ЛОЖЬ*ИСТИНА = 0*1 = 0 = ЛОЖЬ
A4: TRUE | B4: FALSE | D4: =A4&"*"&B4&" = "&--A4&"*"&--B4&" = "&A4*B4&" = "&AND(A4*B4) -> ИСТИНА*ЛОЖЬ = 1*0 = 0 = ЛОЖЬ
A5: FALSE | B5: FALSE | D5: =A5&"*"&B5&" = "&--A5&"*"&--B5&" = "&A5*B5&" = "&AND(A5*B5) -> ЛОЖЬ*ЛОЖЬ = 0*0 = 0 = ЛОЖЬ
A7: ИЛИ критерий = по крайней мере одна логическая переменная принимает значение ИСТИНА = сложение
A8: TRUE | B8: TRUE | D8: =A8&"+"&B8&" = "&--A8&"+"&--B8&" = "&A8+B8&" = "&OR(A8+B8) -> ИСТИНА+ИСТИНА = 1+1 = 2 = ИСТИНА
A9: FALSE | B9: TRUE | D9: =A9&"+"&B9&" = "&--A9&"+"&--B9&" = "&A9+B9&" = "&OR(A9+B9) -> ЛОЖЬ+ИСТИНА = 0+1 = 1 = ИСТИНА
A10: TRUE | B10: FALSE | D10: =A10&"+"&B10&" = "&--A10&"+"&--B10&" = "&A10+B10&" = "&OR(A10+B10) -> ИСТИНА+ЛОЖЬ = 1+0 = 1 = ИСТИНА
A11: FALSE | B11: FALSE | D11: =A11&"+"&B11&" = "&--A11&"+"&--B11&" = "&A11+B11&" = "&OR(A11+B11) -> ЛОЖЬ+ЛОЖЬ = 0+0 = 0 = ЛОЖЬ
A13: И критерий = все логические переменные принимают значение ИСТИНА = умножение
A14: TRUE | B14: TRUE | C14: TRUE | E14: =A14&"*"&B14&"*"&C14&" = "&--A14&"*"&--B14&"*"&--C14&" = "&A14*B14*C14&" = "&AND(A14*B14*C14) -> ИСТИНА*ИСТИНА*ИСТИНА = 1*1*1 = 1 = ИСТИНА
A15: FALSE | B15: TRUE | C15: TRUE | E15: ЛОЖЬ*ИСТИНА*ИСТИНА = 0*1*1 = 0 = ЛОЖЬ
A16: TRUE | B16: FALSE | C16: TRUE | E16: ИСТИНА*ЛОЖЬ*ИСТИНА = 1*0*1 = 0 = ЛОЖЬ
A17: TRUE | B17: TRUE | C17: FALSE | E17: ИСТИНА*ИСТИНА*ЛОЖЬ = 1*1*0 = 0 = ЛОЖЬ
A18: TRUE | B18: FALSE | C18: FALSE | E18: ИСТИНА*ЛОЖЬ*ЛОЖЬ = 1*0*0 = 0 = ЛОЖЬ
A19: FALSE | B19: TRUE | C19: FALSE | E19: ЛОЖЬ*ИСТИНА*ЛОЖЬ = 0*1*0 = 0 = ЛОЖЬ
A20: FALSE | B20: FALSE | C20: TRUE | E20: ЛОЖЬ*ЛОЖЬ*ИСТИНА = 0*0*1 = 0 = ЛОЖЬ
A21: FALSE | B21: FALSE | C21: FALSE | E21: ЛОЖЬ*ЛОЖЬ*ЛОЖЬ = 0*0*0 = 0 = ЛОЖЬ
A23: ИЛИ критерий = по крайней мере одна логическая переменная принимает значение ИСТИНА = сложение
A24: TRUE | B24: TRUE | C24: TRUE | E24: =A24&"+"&B24&"+"&C24&" = "&--A24&"+"&--B24&"+"&--C24&" = "&A24+B24+C24&" = "&OR(A24+B24+C24) -> ИСТИНА+ИСТИНА+ИСТИНА = 1+1+1 = 3 = ИСТИНА
A25: FALSE | B25: TRUE | C25: TRUE | E25: =A25&"+"&B25&"+"&C25&" = "&--A25&"+"&--B25&"+"&--C25&" = "&A25+B25+C25&" = "&OR(A25+B25+C25) -> ЛОЖЬ+ИСТИНА+ИСТИНА = 0+1+1 = 2 = ИСТИНА
A26: TRUE | B26: FALSE | C26: TRUE | E26: ИСТИНА+ЛОЖЬ+ИСТИНА = 1+0+1 = 2 = ИСТИНА
A27: TRUE | B27: TRUE | C27: FALSE | E27: ИСТИНА+ИСТИНА+ЛОЖЬ = 1+1+0 = 2 = ИСТИНА
A28: TRUE | B28: FALSE | C28: FALSE | E28: ИСТИНА+ЛОЖЬ+ЛОЖЬ = 1+0+0 = 1 = ИСТИНА
A29: FALSE | B29: TRUE | C29: FALSE | E29: ЛОЖЬ+ИСТИНА+ЛОЖЬ = 0+1+0 = 1 = ИСТИНА
A30: FALSE | B30: FALSE | C30: TRUE | E30: ЛОЖЬ+ЛОЖЬ+ИСТИНА = 0+0+1 = 1 = ИСТИНА
A31: FALSE | B31: FALSE | C31: FALSE | E31: ЛОЖЬ+ЛОЖЬ+ЛОЖЬ = 0+0+0 = 0 = ЛОЖЬ

Sheet 11-(1)
A1: Назад к указателю | B1: Авто | C1: Механик | D1: Цена
A2: 2013-03-05 | B2: Toyota | C2: Tom | D2: 1290
A3: 2013-03-06 | B3: Kia | C3: Chin | D3: 955
A4: 2013-03-05 | B4: Toyota | C4: Tom | D4: 2051
A5: 2013-03-05 | B5: Toyota | C5: Tom | D5: 489
A6: 2013-03-06 | B6: Toyota | C6: Meg | D6: 219
A8: Критерии: | F8: Критерии для функций базы данных
A9: Дата | B9: Авто | C9: Механик | D9: Цена | F9: Дата | G9: Авто | H9: Механик | I9: Цена
A10: 2013-03-05 | B10: Toyota | C10: Tom | D10: 1000 | F10: 2013-03-05 | G10: Toyota | H10: Tom | I10: >1000
A12: Количество | B12: =COUNTIFS(A2:A6,A10,B2:B6,B10,C2:C6,C10,D2:D6,">"&D10) -> 2 | C12: [1] | D12: =СЧЁТЕСЛИМН(A2:A6;A10;B2:B6;B10;C2:C6;C10;D2:D6;">"&D10)
A13: Сумма | B13: =SUMIFS(D2:D6,A2:A6,A10,B2:B6,B10,C2:C6,C10,D2:D6,">"&D10) -> 3341 | C13: [2] | D13: =СУММЕСЛИМН(D2:D6;A2:A6;A10;B2:B6;B10;C2:C6;C10;D2:D6;">"&D10)
A14: Среднее | B14: =AVERAGEIFS(D2:D6,A2:A6,A10,B2:B6,B10,C2:C6,C10,D2:D6,">"&D10) -> 1670.5 | C14: [3] | D14: =СРЗНАЧЕСЛИМН(D2:D6;A2:A6;A10;B2:B6;B10;C2:C6;C10;D2:D6;">"&D10)
A15: Максимум | B15: =DMAX(A1:D6,D1,F9:I10) -> 2051 | C15: [4] | D15: =ДМАКС(A1:D6;D1;F9:I10)
A16: Количество | B16: =SUMPRODUCT(--(A2:A6=A10),--(B2:B6=B10),--(C2:C6=C10),--(D2:D6>D10)) -> 2 | C16: [5] | D16: =СУММПРОИЗВ(--(A2:A6=A10);--(B2:B6=B10);--(C2:C6=C10);--(D2:D6>D10))
A17: Минимум | B17: =_xlfn.AGGREGATE(15,6,D2:D6/((A2:A6=A10)*(B2:B6=B10)*(C2:C6=C10)*(D2:D6>D10)),1) -> 1290 | C17: [6] | D17: =АГРЕГАТ(15;6;D2:D6/((A2:A6=A10)*(B2:B6=B10)*(C2:C6=C10)*(D2:D6>D10));1)
A18: Стандартное отклонение | B18: =_xlfn.STDEV.S(IF(A2:A6=A10,IF(B2:B6=B10,IF(C2:C6=C10,IF(D2:D6>D10,D2:D6))))) -> 538.1082605 | C18: [7] | D18: {=СТАНДОТКЛОН.В(ЕСЛИ(A2:A6=A10;ЕСЛИ(B2:B6=B10; ЕСЛИ(C2:C6=C10;ЕСЛИ(D2:D6>D10;D2:D6)))))}

Sheet 11-(2)
A1: Назад к указателю | B1: Авто | C1: Механик | D1: Цена
A2: 2013-03-05 | B2: Toyota | C2: Tom | D2: 1290 | F2: Дата | G2: 2013-03-05
A3: 2013-03-06 | B3: Kia | C3: Chin | D3: 955 | F3: Механик | G3: Tom
A4: 2013-03-05 | B4: Toyota | C4: Tom | D4: 2051 | F4: Авто | G4: Toyota
A5: 2013-03-05 | B5: Toyota | C5: Tom | D5: 489
A6: 2013-03-06 | B6: Toyota | C6: Meg | D6: 219 | F6: Цена | G6: Сумма
F7: 1290 | G7: 1290
F8: 2051 | G8: 2051
F9: Общий итог | G9: 3341

Sheet 11-(3)
A1: Назад к указателю | B1: Авто | C1: Механик | D1: Цена
A2: 2013-03-05 | B2: Toyota | C2: Tom | D2: 1290
A3: 2013-03-06 | B3: Kia | C3: Chin | D3: 955
A4: 2013-03-05 | B4: Toyota | C4: Tom | D4: 2051
A5: 2013-03-05 | B5: Toyota | C5: Tom | D5: 489
A6: 2013-03-06 | B6: Toyota | C6: Meg | D6: 219
A7: Итог | D7: =SUBTOTAL(101,Таблица2[Цена]) -> 1670.5

Sheet 11-(4)
A1: Назад к указателю | B1: Авто | C1: Механик | D1: Цена
A2: 2013-03-05 | B2: Toyota | C2: Tom | D2: 1290
A3: 2013-03-06 | B3: Kia | C3: Chin | D3: 955
A4: 2013-03-05 | B4: Toyota | C4: Tom | D4: 2051
A5: 2013-03-05 | B5: Toyota | C5: Tom | D5: 489
A6: 2013-03-06 | B6: Toyota | C6: Meg | D6: 219

Sheet 11-(5)
A1: Назад к указателю
A2: Дата | B2: Авто | C2: Механик | D2: Цена
A3: 2013-03-05 | B3: Toyota | C3: Tom | D3: >1000
A5: Дата | B5: Авто | C5: Механик | D5: Цена | F5: Выборка:
A6: 2013-03-05 | B6: Toyota | C6: Tom | D6: 1290 | F6: Дата | G6: Авто | H6: Механик | I6: Цена
A7: 2013-03-06 | B7: Kia | C7: Chin | D7: 955 | F7: 2013-03-05 | G7: Toyota | H7: Tom | I7: 1290
A8: 2013-03-05 | B8: Toyota | C8: Tom | D8: 2051 | F8: 2013-03-05 | G8: Toyota | H8: Tom | I8: 2051
A9: 2013-03-05 | B9: Toyota | C9: Tom | D9: 489
A10: 2013-03-06 | B10: Toyota | C10: Meg | D10: 219

Sheet 11-(6)
A1: Назад к указателю | B1: Авто | C1: Механик | D1: Цена | E1: Вспомогательная
A2: 2013-03-05 | B2: Toyota | C2: Tom | D2: 1290 | E2: =AND(A2=$A$10,B2=$B$10,C2=$C$10,D2>=$D$10) -> TRUE | F2: =И(A2=$A$10;B2=$B$10;C2=$C$10;D2>=$D$10)
A3: 2013-03-06 | B3: Kia | C3: Chin | D3: 955 | E3: =AND(A3=$A$10,B3=$B$10,C3=$C$10,D3>=$D$10) -> FALSE | F3: =И(A3=$A$10;B3=$B$10;C3=$C$10;D3>=$D$10)
A4: 2013-03-05 | B4: Toyota | C4: Tom | D4: 2051 | E4: =AND(A4=$A$10,B4=$B$10,C4=$C$10,D4>=$D$10) -> TRUE | F4: =И(A4=$A$10;B4=$B$10;C4=$C$10;D4>=$D$10)
A5: 2013-03-05 | B5: Toyota | C5: Tom | D5: 489 | E5: =AND(A5=$A$10,B5=$B$10,C5=$C$10,D5>=$D$10) -> FALSE | F5: =И(A5=$A$10;B5=$B$10;C5=$C$10;D5>=$D$10)
A6: 2013-03-06 | B6: Toyota | C6: Meg | D6: 219 | E6: =AND(A6=$A$10,B6=$B$10,C6=$C$10,D6>=$D$10) -> FALSE | F6: =И(A6=$A$10;B6=$B$10;C6=$C$10;D6>=$D$10)
A8: Критерии:
A9: Дата | B9: Авто | C9: Механик | D9: Цена
A10: 2013-03-05 | B10: Toyota | C10: Tom | D10: 1000
A12: Счет | B12: =COUNTIF(E2:E6,TRUE) -> 2 | C12: =СЧЁТЕСЛИ(E2:E6;ИСТИНА)

Sheet 11-(7)
A1: Назад к указателю | B1: Авто | C1: Механик | D1: Цена | E1: Вспомогательная
A2: 2013-03-05 | B2: Toyota | C2: Tom | D2: 1290 | E2: =(A2=$A$10)*(B2=$B$10)*(C2=$C$10)*(D2>=$D$10) -> 1 | F2: =(A2=$A$10)*(B2=$B$10)*(C2=$C$10)*(D2>=$D$10)
A3: 2013-03-06 | B3: Kia | C3: Chin | D3: 955 | E3: =(A3=$A$10)*(B3=$B$10)*(C3=$C$10)*(D3>=$D$10) -> 0 | F3: =(A3=$A$10)*(B3=$B$10)*(C3=$C$10)*(D3>=$D$10)
A4: 2013-03-05 | B4: Toyota | C4: Tom | D4: 2051 | E4: =(A4=$A$10)*(B4=$B$10)*(C4=$C$10)*(D4>=$D$10) -> 1 | F4: =(A4=$A$10)*(B4=$B$10)*(C4=$C$10)*(D4>=$D$10)
A5: 2013-03-05 | B5: Toyota | C5: Tom | D5: 489 | E5: =(A5=$A$10)*(B5=$B$10)*(C5=$C$10)*(D5>=$D$10) -> 0 | F5: =(A5=$A$10)*(B5=$B$10)*(C5=$C$10)*(D5>=$D$10)
A6: 2013-03-06 | B6: Toyota | C6: Meg | D6: 219 | E6: =(A6=$A$10)*(B6=$B$10)*(C6=$C$10)*(D6>=$D$10) -> 0 | F6: =(A6=$A$10)*(B6=$B$10)*(C6=$C$10)*(D6>=$D$10)
A8: Критерии:
A9: Дата | B9: Авто | C9: Механик | D9: Цена
A10: 2013-03-05 | B10: Toyota | C10: Tom | D10: 1000
A12: Счет | B12: =SUM(E2:E6) -> 2 | C12: =СУММ(E2:E6)

Sheet 11-(7.2)
A1: Назад к указателю
B2: Цель формулы
B3: Подсчет записей в наборе данных, которые удовлетворяют всем четырем критериям
B4: Шаги расчета:
B5: 1. =СУММПРОИЗВ(--(A2:A6=A10);--(B2:B6=B10);--(C2:C6=C10);--(D2:D6>D10))
B6: Круглые скобки требуют первоочередного расчета операторов сравнения
B7: 2. =СУММПРОИЗВ(--({ИСТИНА:ЛОЖЬ:ИСТИНА:ИСТИНА:ЛОЖЬ}); --({ИСТИНА:ЛОЖЬ:ИСТИНА:ИСТИНА:ИСТИНА}); --({ИСТИНА:ЛОЖЬ:ИСТИНА:ИСТИНА:ЛОЖЬ}); --({ИСТИНА:ЛОЖЬ:ИСТИНА:ЛОЖЬ:ЛОЖЬ}))
B8: Так как функция СУММПРОИЗВ не может "увидеть" значения ИСТИНА и ЛОЖЬ, вы должны использовать математические операции, например, двойное отрицание для преобразования логических значений в числа
B9: 3. =СУММПРОИЗВ({1:0:1:1:0};{1:0:1:1:1};{1:0:1:1:0};{1:0:1:0:0})
B10: 4. =SUM({1;0;1;1;0}*{1;0;1;1;1}*{1;0;1;1;0}*{1;0;1;0;0})
B11: Последовательно перемножаются сначала первые элементы каждого массива, затем вторые и т.д.
B12: 1 * 1 * 1 * 1 = 1
B13: 0 * 0 * 0 * 0 = 0
B14: 1 * 1 * 1 * 1 = 1
B15: 1 * 1 * 1 * 0 = 0
B16: 0 * 1 * 0 * 0 = 0
B17: 5. =SUM({1;0;1;0;0})
B18: Только когда все четыре соответствующих элемента массива равны единице: 1 * 1 * 1 * 1 = 1, вы получаете 1 в результате
B19: 6. Формула возвращает одно значение - 2
B20: Основная концепция:
B21: Результирующий массив {1;0;1;0;0} состоит из нулей и единиц. Поскольку вы просто подсчитываете количество, нули не влияют на результат. Нулевые значения используются для фильтрации (отбора) значений. Вы используете СУММПРОИЗВ вместо СУММ, чтобы не нажимать Ctrl+Shift+Enter

Sheet 11-(7.4)
A1: Назад к указателю
B2: Цель формулы
B3: Найти минимальное значение на основании четырех критериев
B4: Шаги расчета:
B5: 1. =АГРЕГАТ(15;6;D2:D6/((A2:A6=A10)*(B2:B6=B10)*(C2:C6=C10)*(D2:D6>D10));1)
B6: Значение 15 в аргументе номер_функции соответствует функции НАИМЕНЬШИЙ. Значение 6 в аргументе параметры указывает пропускать значения ошибок. Значение 1 в k-параметре сообщает функции НАИМЕНЬШИЙ искать минимальное значение в массиве. Круглые скобки требуют первоочередного расчета операторов сравнения
B7: 2. =АГРЕГАТ(15;6;D2:D6/(({ИСТИНА:ЛОЖЬ:ИСТИНА:ИСТИНА:ЛОЖЬ})* ({ИСТИНА:ЛОЖЬ:ИСТИНА:ИСТИНА:ИСТИНА})* ({ИСТИНА:ЛОЖЬ:ИСТИНА:ИСТИНА:ЛОЖЬ})* ({ИСТИНА:ЛОЖЬ:ИСТИНА:ЛОЖЬ:ЛОЖЬ}));1)
B8: В знаменателе выполняется умножение четыре логических массивов. Операция умножения будет преобразовывать логические значения в единицы и нули:
B9: ИСТИНА * ИСТИНА * ИСТИНА * ИСТИНА = 1
B10: ЛОЖЬ * ЛОЖЬ * ЛОЖЬ * ЛОЖЬ = 0
B11: ИСТИНА * ИСТИНА * ИСТИНА * ИСТИНА = 1
B12: ИСТИНА * ИСТИНА * ИСТИНА * ЛОЖЬ = 0
B13: ЛОЖЬ * ИСТИНА * ЛОЖЬ * ЛОЖЬ = 0
B14: 3. =АГРЕГАТ(15;6;D2:D6/{1:0:1:0:0};1)
B15: Только когда все четыре соответствующих элемента массива равны единице: ИСТИНА * ИСТИНА * ИСТИНА * ИСТИНА = 1, вы получаете 1 в результате
B16: 4. =АГРЕГАТ(15;6;{1290:955:2051:489:219}/{1:0:1:0:0};1)
B17: На этой стадии обработки И критерия вы не используете умножение, потому что если вы это сделаете, минимальная стоимость будет равна нулю, что приведет к неверному ответу. В качестве логического математического оператора используется деление, так что деление на ноль приведет к ошибке #ДЕЛ/0!. А опция 6 функции АГРЕГАТ позволит проигнорировать эти ошибки. Итак, если вы используете произведение, вы получите:
B18: {1290:955:2051:489:219}*{1:0:1:0:0}={1290:0:2051:0:0} и минимальное значение 0
B19: Если вы используете деление, вы получите:
B20: {1290:955:2051:489:219}/{1:0:1:0:0}={1290:#ДЕЛ/0!:2051:#ДЕЛ/0!:#ДЕЛ/0!}
B21: Это - ключ к расчету: использование деления приводит к ошибке в результирующем массиве, и с помощью опции 6 в аргументе функции АГРЕГАТ эти значения фильтруются и не идут в расчет минимального значения
B22: 5. =АГРЕГАТ(15;6;{1290:#ДЕЛ/0!:2051:#ДЕЛ/0!:#ДЕЛ/0!};1)
B23: Вы отобрали (отфильтровали) "правильные" значения благодаря логическому умножению и делению.
B24: 6. Формула возвращает одно значение: 1290
B25: Основная концепция:
B26: Результирующий массив {1290:#ДЕЛ/0!:2051:#ДЕЛ/0!:#ДЕЛ/0!} заполняется числами и значениями ошибок. Ошибки служат фильтром, позволяющим добавить в расчет только нужные числа. Вы используете функцию АГРЕГАТ вместо МИН с четырьмя ЕСЛИ, чтобы не нажимать Ctrl+Shift+Enter.

Sheet 11-(8)
A1: Назад к указателю | B1: =$E$2&" or "&$E$3&"?" -> Gidget or Rodger? | E1: Менеджер
A2: Gidget | B2: =(A2=$E$2)+(A2=$E$3) -> 1 | C2: =(A2=$E$2)+(A2=$E$3)=ИСТИНА+ЛОЖЬ=ИСТИНА=1 | E2: Gidget
A3: Rodger | B3: =(A3=$E$2)+(A3=$E$3) -> 1 | C3: =(A3=$E$2)+(A3=$E$3)=ЛОЖЬ+ИСТИНА=ИСТИНА=1 | E3: Rodger
A4: Davis | B4: =(A4=$E$2)+(A4=$E$3) -> 0 | C4: =(A4=$E$2)+(A4=$E$3)=ЛОЖЬ+ЛОЖЬ=ЛОЖЬ=0
A5: Rodger | B5: =(A5=$E$2)+(A5=$E$3) -> 1 | C5: =(A5=$E$2)+(A5=$E$3)=ЛОЖЬ+ИСТИНА=ИСТИНА=1
A6: Bernardina | B6: =(A6=$E$2)+(A6=$E$3) -> 0 | C6: =(A6=$E$2)+(A6=$E$3)=ЛОЖЬ+ЛОЖЬ=ЛОЖЬ=0

Sheet 11-(9)
A1: Назад к указателю | B1: Чистые активы | C1: Кредитный рейтинг | D1: Предоставить кредит? | G1: ИЛИ критерии:
A2: J.K. LLC | B2: 85024 | C2: 4 | D2: =(B2>$G$3)+(C2>=$G$5) -> 1 | E2: =(B2>$G$3)+(C2>=$G$5)=ЛОЖЬ+ИСТИНА=ИСТИНА=1 | G2: Чистые активы
A3: Fruits Inc. | B3: 111104 | C3: 3.5 | D3: =(B3>$G$3)+(C3>=$G$5) -> 2 | E3: =(B3>$G$3)+(C3>=$G$5)=ИСТИНА+ИСТИНА=ИСТИНА=2 | G3: 100000
A4: SW | B4: 89236 | C4: 2.4 | D4: =(B4>$G$3)+(C4>=$G$5) -> 0 | E4: =(B4>$G$3)+(C4>=$G$5)=ЛОЖЬ+ЛОЖЬ=ЛОЖЬ=0 | G4: Кредитный рейтинг
A5: PCC | B5: 113212 | C5: 3 | D5: =(B5>$G$3)+(C5>=$G$5) -> 1 | E5: =(B5>$G$3)+(C5>=$G$5)=ИСТИНА+ЛОЖЬ=ИСТИНА=1 | G5: 3.5
A6: Gigi's Inc. | B6: 100000 | C6: 1.4 | D6: =(B6>$G$3)+(C6>=$G$5) -> 0 | E6: =(B6>$G$3)+(C6>=$G$5)=ЛОЖЬ+ЛОЖЬ=ЛОЖЬ=0

Sheet 11-(10)
A1: Назад к указателю | C1: Менеджер
A2: Gidget | C2: Gidget
A3: Rodger | C3: Rodger
A4: Davis
A5: Rodger
A6: Bernardina
A8: Счет | B8: =COUNTIF(A2:A6,C2)+COUNTIF(A2:A6,C3) -> 3 | C8: < Формула [1] =СЧЁТЕСЛИ(A2:A6;C2)+СЧЁТЕСЛИ(A2:A6;C3)
A9: Счет | B9: =DCOUNTA(A1:A6,A1,C1:C3) -> 0 | C9: < Формула [2] =БСЧЁТА(A1:A6;A1;C1:C3)
A10: Счет | B10: =SUMPRODUCT((A2:A6=C2)+(A2:A6=C3)) -> 3 | C10: < Формула [3] =СУММПРОИЗВ((A2:A6=C2)+(A2:A6=C3))
A11: Счет | B11: =SUM(IF((A2:A6=C2)+(A2:A6=C3),1)) -> 3 | C11: < Формула [4] {=СУММ(ЕСЛИ((A2:A6=C2)+(A2:A6=C3);1))}
A12: Счет | B12: =SUMPRODUCT(--ISNUMBER(MATCH(A2:A6,C2:C3,0))) -> 3 | C12: < Формула [5] =СУММПРОИЗВ(--ЕЧИСЛО(ПОИСКПОЗ(A2:A6;C2:C3;0)))
C14: Менеджер | D14: Менеджер
C15: Gidget | D15: Rodger

Sheet 11-(11)
A1: Назад к указателю
A2: Счет | B2: =COUNTIF(B9:B518,D11)+COUNTIF(B9:B518,D12)+COUNTIF(B9:B518,D13)+COUNTIF(B9:B518,D14)+COUNTIF(B9:B518,D15)+COUNTIF(B9:B518,D16) -> 68 | C2: [1]_=СЧЁТЕСЛИ(B9:B518;D11)+СЧЁТЕСЛИ(B9:B518;D12)+СЧЁТЕСЛИ(B9:B518;D13)+СЧЁТЕСЛИ(B9:B518;D14)+СЧЁТЕСЛИ(B9:B518;D15)+СЧЁТЕСЛИ(B9:B518;D16)
A3: Счет | B3: =DCOUNTA(B8:B518,B8,D10:D16) -> 68 | C3: [2]_=БСЧЁТА(B8:B518;B8;D10:D16)
A4: Счет | B4: =SUMPRODUCT((B9:B518=D11)+(B9:B518=D12)+(B9:B518=D13)+(B9:B518=D14)+(B9:B518=D15)+(B9:B518=D16)) -> 68 | C4: [3]_=СУММПРОИЗВ((B9:B518=D11)+(B9:B518=D12)+(B9:B518=D13)+(B9:B518=D14)+(B9:B518=D15)+(B9:B518=D16))
A5: Счет | B5: =SUM(IF((B9:B518=D11)+(B9:B518=D12)+(B9:B518=D13)+(B9:B518=D14)+(B9:B518=D15)+(B9:B518=D16),1)) -> 68 | C5: [4]_{=СУММ(ЕСЛИ((B9:B518=D11)+(B9:B518=D12)+(B9:B518=D13)+(B9:B518=D14)+(B9:B518=D15)+(B9:B518=D16);1))}
A6: Счет | B6: =SUMPRODUCT(--ISNUMBER(MATCH(B9:B518,D11:D16,0))) -> 68 | C6: [5]_=СУММПРОИЗВ(--ЕЧИСЛО(ПОИСКПОЗ(B9:B518;D11:D16;0)))
A8: Дата звонков | B8: Менеджеры | D8: Критерии ИЛИ
A9: 2013-10-18 | B9: Davis Wolford | D9: Группа 1
A10: 2013-10-06 | B10: Bernardina Free | D10: Менеджеры
A11: 2013-10-19 | B11: Bernardina Free | D11: Gidget Marlow
A12: 2013-10-20 | B12: Celesta Granger | D12: Rodger Riddle
A13: 2013-10-13 | B13: Nana Hathaway | D13: Kym Handy
A14: 2013-10-18 | B14: Nana Hathaway | D14: Zulma Farrell
A15: 2013-11-20 | B15: Yulanda Casillas | D15: Edgardo Dalton
A16: 2013-10-26 | B16: Gema Tapia | D16: Jama Monk
A17: 2013-10-18 | B17: Maricela Hostetler
A18: 2013-10-09 | B18: Angelic Mcnair
A19: 2013-11-22 | B19: Zulma Farrell
A20: 2013-11-03 | B20: Annamae Varney
A21: 2013-10-10 | B21: Gema Tapia
A22: 2013-11-18 | B22: Lizzie Stinson
A23: 2013-10-18 | B23: Normand Mcghee
A24: 2013-10-19 | B24: Mammie Ogle
A25: 2013-11-02 | B25: Rodger Riddle
A26: 2013-10-14 | B26: Davis Wolford
A27: 2013-11-01 | B27: Malena Caudle
A28: 2013-11-13 | B28: Davis Wolford
A29: 2013-10-24 | B29: Inge Seiler
A30: 2013-10-27 | B30: Yulanda Casillas
A31: 2013-11-13 | B31: Dusty Pointer
A32: 2013-10-13 | B32: Leo Sigler
A33: 2013-11-11 | B33: Rhea Furr
A34: 2013-10-18 | B34: Lizzie Stinson
A35: 2013-10-07 | B35: Lizzie Stinson
A36: 2013-11-20 | B36: Emory Stubblefield
A37: 2013-10-29 | B37: Lucienne Chatman
A38: 2013-10-31 | B38: Henriette Shell
A39: 2013-10-17 | B39: Emory Stubblefield
A40: 2013-11-03 | B40: Elfriede Maupin
A41: 2013-10-20 | B41: Shantel Fennell
A42: 2013-10-10 | B42: Celesta Granger
A43: 2013-10-08 | B43: Floretta Dozier
A44: 2013-11-09 | B44: Jack Koontz
A45: 2013-11-05 | B45: Emory Stubblefield
A46: 2013-11-18 | B46: Wynona Folse
A47: 2013-11-15 | B47: Rhea Furr
A48: 2013-11-20 | B48: Wynona Folse
A49: 2013-10-14 | B49: Henriette Shell
A50: 2013-11-11 | B50: Adena Villa
A51: 2013-11-18 | B51: Zulma Farrell
A52: 2013-10-05 | B52: Corrinne Greathouse
A53: 2013-10-27 | B53: Colene Garland
A54: 2013-11-07 | B54: Angelic Mcnair
A55: 2013-11-22 | B55: Lucienne Chatman
A56: 2013-11-02 | B56: Zulma Farrell
A57: 2013-11-08 | B57: Yulanda Casillas
A58: 2013-10-18 | B58: Gema Tapia
A59: 2013-11-04 | B59: Lucienne Chatman
A60: 2013-10-14 | B60: Inge Seiler
A61: 2013-10-24 | B61: Davis Wolford
A62: 2013-11-11 | B62: Colene Garland
A63: 2013-11-06 | B63: Maryrose Clawson
A64: 2013-11-12 | B64: Annamae Varney
A65: 2013-11-01 | B65: Monte Maloney
A66: 2013-11-20 | B66: Edgardo Dalton
A67: 2013-11-01 | B67: Bernardina Free
A68: 2013-10-16 | B68: Fidelia Clifton
A69: 2013-10-12 | B69: Eleonora Redmond
A70: 2013-10-11 | B70: Annamae Varney
A71: 2013-10-28 | B71: Jack Koontz
A72: 2013-10-21 | B72: Edgardo Dalton
A73: 2013-11-14 | B73: Floretta Dozier
A74: 2013-11-16 | B74: Laurine Bullard
A75: 2013-10-31 | B75: Rodger Riddle
A76: 2013-11-06 | B76: Normand Mcghee
A77: 2013-10-18 | B77: Maricela Hostetler
A78: 2013-10-28 | B78: Deloris Musgrove
A79: 2013-11-12 | B79: Gidget Marlow
A80: 2013-10-22 | B80: Nana Hathaway
A81: 2013-10-16 | B81: Emory Stubblefield
A82: 2013-11-16 | B82: Yulanda Casillas
A83: 2013-11-09 | B83: Adena Villa
A84: 2013-10-21 | B84: Inge Seiler
A85: 2013-11-05 | B85: Kym Handy
A86: 2013-10-20 | B86: Monte Maloney
A87: 2013-10-17 | B87: Lura Maes
A88: 2013-11-01 | B88: Ethelene Contreras
A89: 2013-10-23 | B89: Gidget Marlow
A90: 2013-10-18 | B90: Lizzie Stinson
A91: 2013-10-20 | B91: Maryrose Clawson
A92: 2013-10-17 | B92: Bernardina Free
A93: 2013-11-10 | B93: Wynona Folse
A94: 2013-11-18 | B94: Malena Caudle
A95: 2013-10-29 | B95: Emory Stubblefield
A96: 2013-10-23 | B96: Dusty Pointer
A97: 2013-10-25 | B97: Laurine Bullard
A98: 2013-10-04 | B98: Shantel Fennell
A99: 2013-10-04 | B99: Colene Garland
A100: 2013-11-04 | B100: Silas Barksdale
A101: 2013-10-05 | B101: Susy Olivo
A102: 2013-11-03 | B102: Shantel Fennell
A103: 2013-10-10 | B103: Dusty Pointer
A104: 2013-10-11 | B104: Laurine Bullard
A105: 2013-10-13 | B105: Henriette Shell
A106: 2013-10-06 | B106: Maryrose Clawson
A107: 2013-10-16 | B107: Jama Monk
A108: 2013-11-14 | B108: Lavonne Raines
A109: 2013-10-24 | B109: Nana Hathaway
A110: 2013-10-26 | B110: Yulanda Casillas
A111: 2013-10-28 | B111: Henriette Shell
A112: 2013-11-14 | B112: Fidelia Clifton
A113: 2013-10-08 | B113: Henriette Shell
A114: 2013-10-10 | B114: Deloris Musgrove
A115: 2013-10-22 | B115: Angelic Mcnair
A116: 2013-10-22 | B116: Nana Hathaway
A117: 2013-10-29 | B117: Annamae Varney
A118: 2013-11-22 | B118: Bernardina Free
A119: 2013-11-20 | B119: Maryrose Clawson
A120: 2013-10-16 | B120: Deloris Musgrove
A121: 2013-11-03 | B121: Davis Wolford
A122: 2013-10-10 | B122: Laurine Bullard
A123: 2013-11-02 | B123: Jama Monk
A124: 2013-10-26 | B124: Inge Seiler
A125: 2013-10-10 | B125: Eleonora Redmond
A126: 2013-11-20 | B126: Floretta Dozier
A127: 2013-10-21 | B127: Dudley Gunderson
A128: 2013-10-31 | B128: Inge Seiler
A129: 2013-10-16 | B129: Rhea Furr
A130: 2013-10-21 | B130: Ardell Song
A131: 2013-11-21 | B131: Monte Maloney
A132: 2013-10-10 | B132: Fidelia Clifton
A133: 2013-10-23 | B133: Eleonora Redmond
A134: 2013-11-10 | B134: Inge Seiler
A135: 2013-10-16 | B135: Edgardo Dalton
A136: 2013-10-14 | B136: Mammie Ogle
A137: 2013-11-01 | B137: Celesta Granger
A138: 2013-10-19 | B138: Henriette Shell
A139: 2013-10-15 | B139: Gema Tapia
A140: 2013-10-08 | B140: Wynona Folse
A141: 2013-10-12 | B141: Gidget Marlow
A142: 2013-11-16 | B142: Silas Barksdale
A143: 2013-11-12 | B143: Elfriede Maupin
A144: 2013-11-07 | B144: Lizzie Stinson
A145: 2013-10-14 | B145: Shantel Fennell
A146: 2013-10-17 | B146: Kym Handy
A147: 2013-10-14 | B147: Jama Monk
A148: 2013-10-11 | B148: Shantel Fennell
A149: 2013-11-09 | B149: Lucienne Chatman
A150: 2013-10-23 | B150: Leo Sigler
A151: 2013-11-12 | B151: Lucienne Chatman
A152: 2013-11-22 | B152: Lizzie Stinson
A153: 2013-11-18 | B153: Rodger Riddle
A154: 2013-11-10 | B154: Gidget Marlow
A155: 2013-10-05 | B155: Elfriede Maupin
A156: 2013-11-22 | B156: Inge Seiler
A157: 2013-10-17 | B157: Monte Maloney
A158: 2013-10-19 | B158: Ardelle Covey
A159: 2013-10-23 | B159: Fidelia Clifton
A160: 2013-10-28 | B160: Henriette Shell
A161: 2013-11-15 | B161: Gidget Marlow
A162: 2013-10-20 | B162: Leo Sigler
A163: 2013-11-01 | B163: Jack Koontz
A164: 2013-10-03 | B164: Laurine Bullard
A165: 2013-11-07 | B165: Rodger Riddle
A166: 2013-10-14 | B166: Maricela Hostetler
A167: 2013-10-07 | B167: Rodger Riddle
A168: 2013-11-09 | B168: Mammie Ogle
A169: 2013-11-01 | B169: Colene Garland
A170: 2013-10-16 | B170: Leo Sigler
A171: 2013-10-29 | B171: Ardell Song
A172: 2013-11-08 | B172: Lucienne Chatman
A173: 2013-10-07 | B173: Malena Caudle
A174: 2013-10-27 | B174: Lizzie Stinson
A175: 2013-11-14 | B175: Malena Caudle
A176: 2013-11-07 | B176: Lavonne Raines
A177: 2013-10-30 | B177: Eleonora Redmond
A178: 2013-11-11 | B178: Malena Caudle
A179: 2013-11-04 | B179: Elfriede Maupin
A180: 2013-10-28 | B180: Jack Koontz
A181: 2013-11-21 | B181: Elfriede Maupin
A182: 2013-10-05 | B182: Adena Villa
A183: 2013-10-20 | B183: Davis Wolford
A184: 2013-10-08 | B184: Kym Handy
A185: 2013-10-26 | B185: Ardelle Covey
A186: 2013-11-21 | B186: Lura Maes
A187: 2013-11-18 | B187: Kym Handy
A188: 2013-10-21 | B188: Eleonora Redmond
A189: 2013-10-05 | B189: Elfriede Maupin
A190: 2013-10-18 | B190: Edgardo Dalton
A191: 2013-11-15 | B191: Yulanda Casillas
A192: 2013-11-10 | B192: Jama Monk
A193: 2013-10-28 | B193: Lavonne Raines
A194: 2013-10-10 | B194: Kym Handy
A195: 2013-10-06 | B195: Edgardo Dalton
A196: 2013-11-05 | B196: Shantel Fennell
A197: 2013-11-16 | B197: Laurine Bullard
A198: 2013-10-26 | B198: Henriette Shell
A199: 2013-10-19 | B199: Zulma Farrell
A200: 2013-10-26 | B200: Ardelle Covey
A201: 2013-11-15 | B201: Venetta Noland
... 317 more rows

Sheet 11-(13)
A1: Назад к указателю | B1: Чистые активы | C1: Кредитный рейтинг | E1: Критерии ИЛИ: | G1: Критерии ИЛИ для функции БСЧЁТ:
A2: J.K. LLC | B2: 85024 | C2: 4 | E2: Чистые активы | G2: Чистые активы | H2: Кредитный рейтинг
A3: Fruits Inc. | B3: 111104 | C3: 3.5 | E3: 100000 | G3: >100000
A4: SW | B4: 89236 | C4: 2.4 | E4: Кредитный рейтинг | H4: >=3,5
A5: PCC | B5: 113212 | C5: 3 | E5: 3.5
A6: Gigi's Inc. | B6: 100000 | C6: 1.4
A8: Счет | B8: =SUM(IF((B2:B6>E3)+(C2:C6>=E5),1)) -> 3 | C8: < Формула [1] {=СУММ(ЕСЛИ((B2:B6>E3)+(C2:C6>=E5);1))}
A9: Счет | B9: =DCOUNT(B1:C6,,G2:H4) -> 3 | C9: < Формула [2] =БСЧЁТ(B1:C6;;G2:H4)
A10: Счет | B10: =SUMPRODUCT(--((B2:B6>E3)+(C2:C6>=E5)>0)) -> 3 | C10: < Формула [3] =СУММПРОИЗВ(--((B2:B6>E3)+(C2:C6>=E5)>0))
A11: Счет | B11: =COUNTIF(B2:B6,">"&E3)+COUNTIF(C2:C6,">="&E5) -> 4 | C11: < Некорректная формула [4] =СЧЁТЕСЛИ(B2:B6;">"&E3)+СЧЁТЕСЛИ(C2:C6;">="&E5)
A12: Счет | B12: =SUMPRODUCT((B2:B6>E3)+(C2:C6>=E5)) -> 4 | C12: < Некорректная формула [5] =СУММПРОИЗВ((B2:B6>E3)+(C2:C6>=E5))

Sheet 11-(15)
A1: Назад к указателю | B1: Объем продаж | C1: Клиент | E1: Критерии ИЛИ:
A2: West | B2: 186343 | C2: SWQ | E2: Регион
A3: East | B3: 293630 | C3: IGG | E3: West
A4: West | B4: 77970 | C4: IGG | E4: MidWest
A5: South | B5: 27643 | C5: SWQ
A6: MidWest | B6: 34097 | C6: IGG
A7: MidWest | B7: 159800 | C7: SWQ
A9: Критерий ИЛИ по данным одного столбца (логическая проверка не может привести к двум значениям ИСТИНА)
A10: Сумма | B10: =SUMIF(A2:A7,E3,B2:B7)+SUMIF(A2:A7,E4,B2:B7) -> 458210 | C10: =СУММЕСЛИ(A2:A7;E3;B2:B7)+СУММЕСЛИ(A2:A7;E4;B2:B7)
A11: Среднее | B11: =AVERAGE(IF((A2:A7=E3)+(A2:A7=E4),B2:B7)) -> 114552.5 | C11: {=СРЗНАЧ(ЕСЛИ((A2:A7=E3)+(A2:A7=E4);B2:B7))}

Sheet 11-(16)
A1: Назад к указателю | B1: Объем продаж | C1: Клиент | E1: Критерии ИЛИ:
A2: West | B2: 186343 | C2: SWQ | E2: Регион
A3: East | B3: 293630 | C3: IGG | E3: West
A4: West | B4: 77970 | C4: IGG | E4: Клиент
A5: South | B5: 27643 | C5: SWQ | E5: IGG
A6: MidWest | B6: 34097 | C6: IGG
A7: MidWest | B7: 159800 | C7: SWQ
A9: Критерий ИЛИ по данным двух столбцов (логическая проверка может привести к двум значениям ИСТИНА)
A10: Сумма | B10: =SUM(IF((A2:A7=E3)+(C2:C7=E5),B2:B7)) -> 592040 | C10: [1] | D10: {=СУММ(ЕСЛИ((A2:A7=E3)+(C2:C7=E5);B2:B7))}
A11: Среднее | B11: =AVERAGE(IF((A2:A7=E3)+(C2:C7=E5),B2:B7)) -> 148010 | C11: [2] | D11: {=СРЗНАЧ(ЕСЛИ((A2:A7=E3)+(C2:C7=E5);B2:B7))}
A12: Сумма | B12: =SUMPRODUCT(--((A2:A7=E3)+(C2:C7=E5)>0),B2:B7) -> 592040 | C12: [3] | D12: =СУММПРОИЗВ(--((A2:A7=E3)+(C2:C7=E5)>0);B2:B7)
A13: Сумма | B13: =SUMIF(A2:A7,E3,B2:B7)+SUMIF(C2:C7,E5,B2:B7) -> 670010 | C13: [4] | D13: =СУММЕСЛИ(A2:A7;E3;B2:B7)+СУММЕСЛИ(C2:C7;E5;B2:B7)

Sheet 11-(17)
A1: Назад к указателю | B1: Объем продаж | C1: Клиент | E1: Критерии ИЛИ:
A2: West | B2: 186343 | C2: SWQ | E2: Регион
A3: East | B3: 293630 | C3: IGG | E3: West
A4: West | B4: 77970 | C4: IGG | E4: Клиент
A5: South | B5: 27643 | C5: SWQ | E5: IGG
A6: MidWest | B6: 34097 | C6: IGG
A7: MidWest | B7: 159800 | C7: SWQ
A9: Критерий ИЛИ по данным двух столбцов (логическая проверка может привести к двум значениям ИСТИНА)
A10: МИН | B10: =MIN(IF((A2:A7=E3)+(C2:C7=E5),B2:B7)) -> 34097 | C10: [1] {=МИН(ЕСЛИ((A2:A7=E3)+(C2:C7=E5);B2:B7))}
A11: МИН | B11: =_xlfn.AGGREGATE(15,6,B2:B7/((A2:A7=E3)+(C2:C7=E5)>0),1) -> 34097 | C11: [2] =АГРЕГАТ(15;6;B2:B7/((A2:A7=E3)+(C2:C7=E5)>0);1)
A12: МАКС | B12: =MAX(IF((A2:A7=E3)+(C2:C7=E5),B2:B7)) -> 293630 | C12: [3] {=МАКС(ЕСЛИ((A2:A7=E3)+(C2:C7=E5);B2:B7))}
A13: МАКС | B13: =_xlfn.AGGREGATE(14,6,B2:B7*((A2:A7=E3)+(C2:C7=E5)>0),1) -> 293630 | C13: [4] =АГРЕГАТ(14;6;B2:B7*((A2:A7=E3)+(C2:C7=E5)>0);1)

Sheet 11-(18)
A1: Назад к указателю | B1: Регион | C1: Продажи | E1: Критерии:
A2: 2013-03-11 | B2: West | C2: 340936 | E2: Дата | F2: Дата | G2: Регион
A3: 2013-02-15 | B3: East | C3: 226110 | E3: 2013-03-18 | F3: 2013-05-12 | G3: West
A4: 2013-04-16 | B4: Midwest | C4: 295977 | G4: Midwest
A5: 2013-05-22 | B5: East | C5: 433524
A6: 2013-03-22 | B6: West | C6: 374854
A7: 2013-02-25 | B7: Midwest | C7: 251871
A9: Критерий ИЛИ указывает на 1 столбец (логический тест ИЛИ не может вернуть более одного значения ИСТИНА)
A11: ="Критерии: между "&TEXT(E3,"Д/ММ")&" и "&TEXT(F3,"Д/ММ")&" для регионов "&G3&" или "&G4 -> Критерии: между 18/03 и 12/05 для регионов West или Midwest
A12: Счет | B12: =COUNTIFS(A2:A7,">="&E3,A2:A7,"<="&F3,B2:B7,G3)+COUNTIFS(A2:A7,">="&E3,A2:A7,"<="&F3,B2:B7,G4) -> 2 | C12: [1] =СЧЁТЕСЛИМН(A2:A7;">="&E3;A2:A7;"<="&F3;B2:B7;G3)+ СЧЁТЕСЛИМН(A2:A7;">="&E3;A2:A7;"<="&F3;B2:B7;G4)
A13: Счет | B13: =SUMPRODUCT(--(A2:A7>=E3),--(A2:A7<=F3),--((B2:B7=G3)+(B2:B7=G4))) -> 2 | C13: [2] =СУММПРОИЗВ(--(A2:A7>=E3);--(A2:A7<=F3);--((B2:B7=G3)+(B2:B7=G4)))
A14: Счет | B14: =SUM(IF((A2:A7>=E3)*(A2:A7<=F3)*((B2:B7=G3)+(B2:B7=G4)),1)) -> 2 | C14: [3] {=СУММ(ЕСЛИ((A2:A7>=E3)*(A2:A7<=F3)*((B2:B7=G3)+(B2:B7=G4));1))}
A15: Счет | B15: =SUMPRODUCT(--(A2:A7>=E3),--(A2:A7<=F3),--ISNUMBER(MATCH(B2:B7,G3:G4,0))) -> 2 | C15: [4] =СУММПРОИЗВ(--(A2:A7>=E3);--(A2:A7<=F3);--ЕЧИСЛО(ПОИСКПОЗ (B2:B7;G3:G4;0)))
A16: Сумма | B16: =SUMIFS(C2:C7,A2:A7,">="&E3,A2:A7,"<="&F3,B2:B7,G3)+SUMIFS(C2:C7,A2:A7,">="&E3,A2:A7,"<="&F3,B2:B7,G4) -> 670831 | C16: [5] =СУММЕСЛИМН(C2:C7;A2:A7;">="&E3;A2:A7;"<="&F3;B2:B7;G3)+ СУММЕСЛИМН(C2:C7;A2:A7;">="&E3;A2:A7;"<="&F3;B2:B7;G4)
A17: Сумма | B17: =SUMPRODUCT(--(A2:A7>=E3),--(A2:A7<=F3),--ISNUMBER(MATCH(B2:B7,G3:G4,0)),C2:C7) -> 670831 | C17: [6] =СУММПРОИЗВ(--(A2:A7>=E3);--(A2:A7<=F3);--ЕЧИСЛО(ПОИСКПОЗ (B2:B7;G3:G4;0));C2:C7)
A18: МИН | B18: =_xlfn.AGGREGATE(15,6,C2:C7/((A2:A7>=E3)*(A2:A7<=F3)*((B2:B7=G3)+(B2:B7=G4))),1) -> 295977 | C18: [7] =АГРЕГАТ(15;6;C2:C7/((A2:A7>=E3)*(A2:A7<=F3)*((B2:B7=G3)+ (B2:B7=G4)));1)
A19: Среднее | B19: =AVERAGE(IF((A2:A7>=E3)*(A2:A7<=F3)*((B2:B7=G3)+(B2:B7=G4)),C2:C7)) -> 335415.5 | C19: [8] {=СРЗНАЧ(ЕСЛИ((A2:A7>=E3)*(A2:A7<=F3)*((B2:B7=G3)+ (B2:B7=G4));C2:C7))}

Sheet 11-(19)
A1: Назад к указателю | B1: Чистые активы | C1: Рейтинг1 | D1: Рейтинг2 | E1: Чистая прибыль | F1: Вспомогательная
A2: J.K. LLC | B2: 85024 | C2: 4 | D2: 6 | E2: 31267 | F2: =AND(B2>$B$10,E2>$D$10,OR(C2>=$C$10,D2>=$C$12)) -> FALSE | G2: =И(B2>$B$10;E2>$D$10;ИЛИ(C2>=$C$10;D2>=$C$12))
A3: Fruits Inc. | B3: 111104 | C3: 3.5 | D3: 9 | E3: 73346 | F3: TRUE | G3: =И(B3>$B$10;E3>$D$10;ИЛИ(C3>=$C$10;D3>=$C$12))
A4: SW | B4: 89236 | C4: 2.4 | D4: 7 | E4: 65334 | F4: FALSE | G4: =И(B4>$B$10;E4>$D$10;ИЛИ(C4>=$C$10;D4>=$C$12))
A5: PCC | B5: 113212 | C5: 3 | D5: 5 | E5: 45609 | F5: FALSE | G5: =И(B5>$B$10;E5>$D$10;ИЛИ(C5>=$C$10;D5>=$C$12))
A6: Gigi's Inc. | B6: 100000 | C6: 1.4 | D6: 1 | E6: 34550 | F6: FALSE | G6: =И(B6>$B$10;E6>$D$10;ИЛИ(C6>=$C$10;D6>=$C$12))
A7: Fabulous Figs | B7: 159800 | C7: 4.3 | D7: 6 | E7: 43500 | F7: TRUE | G7: =И(B7>$B$10;E7>$D$10;ИЛИ(C7>=$C$10;D7>=$C$12))
A9: Критерии: | B9: Чистые активы | C9: Рейтинг1 | D9: Чистая прибыль
B10: 100000 | C10: 3.5 | D10: 37500
C11: Рейтинг2
C12: 6
A14: Критерий ИЛИ указывает на 2 столбца (логический тест ИЛИ может вернуть более одного значения ИСТИНА)
A15: Счет | B15: =COUNTIF(F2:F7,TRUE) -> 2 | C15: [1] =СЧЁТЕСЛИ(F2:F7;ИСТИНА)
A16: Счет | B16: =SUM(IF(B2:B7>B10,IF(E2:E7>D10,IF((C2:C7>=C10)+(D2:D7>=C12),1)))) -> 2 | C16: [2] {=СУММ(ЕСЛИ(B2:B7>B10;ЕСЛИ(E2:E7>D10;ЕСЛИ((C2:C7>=C10)+(D2:D7>=C12);1))))}
A17: Счет | B17: =SUMPRODUCT(--(B2:B7>B10),--(E2:E7>D10),--((C2:C7>=C10)+(D2:D7>=C12)>0)) -> 2 | C17: [3] =СУММПРОИЗВ(--(B2:B7>B10);--(E2:E7>D10);--((C2:C7>=C10)+(D2:D7>=C12)>0))
A18: Счет | B18: =SUM(IF((B2:B7>B10)*(E2:E7>D10)*((C2:C7>=C10)+(D2:D7>=C12)),1)) -> 2 | C18: [4] {=СУММ(ЕСЛИ((B2:B7>B10)*(E2:E7>D10)*((C2:C7>=C10)+(D2:D7>=C12));1))}
A19: МАКС чистые активы | B19: =MAX(IF((B2:B7>B10)*(E2:E7>D10)*((C2:C7>=C10)+(D2:D7>=C12)),B2:B7)) -> 159800 | C19: [5] {=МАКС(ЕСЛИ((B2:B7>B10)*(E2:E7>D10)*((C2:C7>=C10)+(D2:D7>=C12));B2:B7))}
A20: Среднее чистые активы | B20: =AVERAGE(IF((B2:B7>B10)*(E2:E7>D10)*((C2:C7>=C10)+(D2:D7>=C12)),B2:B7)) -> 135452 | C20: [6] {=СРЗНАЧ(ЕСЛИ((B2:B7>B10)*(E2:E7>D10)*((C2:C7>=C10)+(D2:D7>=C12));B2:B7))}
A22: Счет | B22: =DCOUNT(B1:E7,,A25:D28) -> 2 | C22: [7] =БСЧЁТ(B1:E7;;A25:D28)
A24: Критерии функции базы данных:
A25: Чистые активы | B25: Рейтинг1 | C25: Рейтинг2 | D25: Чистая прибыль
A26: >100000 | B26: >=3.5 | C26: >=6 | D26: >37500
A27: >100000 | B27: >=3.5 | D27: >37500
A28: >100000 | C28: >=6 | D28: >37500
